bitfinex/quotes_SOLUSD_20250212
["timestamp","ask_amount","ask_price","bid_price","bid_amount"]
[1739372150354,0.063,192.32,192.29,28.58375418]
[1739372151062,0.063,192.32,192.27,1.12194094]
[1739372151063,0.063,192.32,192.3,28.58375418]
[1739372151344,0.063,192.32,192.31,28.58375418]
[1739372151848,0.063,192.32,192.29,28.58375418]
[1739372152237,28.58375418,192.31,192.27,0.03]
[1739372153151,28.64675418,192.32,192.27,0.03]
[1739372153330,48.64675418,192.32,192.27,0.03]
[1739372153530,49.16665418,192.32,192.27,0.03]
[1739372153751,28.58375418,192.31,192.27,0.03]
[1739372154250,20.5829,192.32,192.27,0.03]
[1739372154757,0.5829,192.32,192.28,28.58375418]
[1739372156131,0.5829,192.32,192.27,28.61375418]
[1739372156547,0.063,192.32,192.27,28.61375418]
[1739372156931,0.063,192.32,192.27,0.03]
[1739372157550,28.70924418,192.28,192.27,0.03]
[1739372157749,42.12109271,192.28,192.27,0.03]
[1739372158956,42.12109271,192.28,192.17,28.58375418]
[1739372158957,1.8203,192.27,192.2,28.58375418]
[1739372159156,1.8203,192.27,192.18,1.21787932]
[1739372159157,0.5201,192.27,192.21,28.58375418]
[1739372159751,49.10385418,192.27,192.2,28.58375418]
[1739372160138,49.10385418,192.27,192.19,28.58375418]
[1739372160339,28.58375418,192.23,192.16,28.61375418]
[1739372160556,28.58375418,192.25,192.17,28.58375418]
[1739372160860,28.58375418,192.25,192.18,28.58375418]
[1739372161072,0.5201,192.27,192.23,28.58375418]
[1739372161361,29.10375418,192.3,192.23,28.58375418]
[1739372161546,19.84884853,192.32,192.19,1.21790679]
[1739372161547,0.063,192.32,192.27,28.58375418]
[1739372161754,0.063,192.32,192.29,28.58375418]
[1739372161966,0.063,192.32,192.3,28.58375418]
[1739372162256,0.063,192.32,192.31,28.58375418]
[1739372163160,0.063,192.32,192.3,28.58375418]
[1739372163559,0.063,192.32,192.31,28.58375418]
[1739372164463,0.063,192.32,192.3,28.58375418]
[1739372164663,0.063,192.32,192.29,5.2004]
[1739372165562,0.063,192.32,192.28,5.32619]
[1739372165777,0.063,192.32,192.28,33.90994418]
[1739372165972,0.063,192.32,192.29,28.58375418]
[1739372166276,28.58375418,192.3,192.23,29.67553046]
[1739372166479,28.58375418,192.3,192.23,33.78565418]
[1739372166662,0.063,192.32,192.27,28.58375418]
[1739372166866,0.063,192.32,192.27,29.67557225]
[1739372167264,0.063,192.32,192.29,28.70924418]
[1739372167483,0.063,192.32,192.3,29.67548058]
[1739372167658,0.063,192.32,192.31,28.70924418]
[1739372168070,0.063,192.32,192.31,28.83473418]
[1739372168659,0.063,192.32,192.31,30.08571418]
[1739372168863,0.063,192.32,192.31,31.08571418]
[1739372169079,0.063,192.32,192.31,30.08571418]
[1739372169659,0.063,192.32,192.31,35.28561418]
[1739372170286,0.063,192.41,192.35,0.12549]
[1739372170467,0.063,192.41,192.4,28.58375418]
[1739372170870,0.063,192.41,192.37,28.58375418]
[1739372171076,0.063,192.41,192.35,28.58375418]
[1739372171575,0.063,192.41,192.36,28.58375418]
[1739372171772,0.063,192.41,192.35,33.78225418]
[1739372172165,0.063,192.41,192.37,28.58375418]
[1739372172572,0.063,192.41,192.36,28.58375418]
[1739372172779,0.063,192.41,192.37,28.58375418]
[1739372173171,0.063,192.41,192.38,28.58375418]
[1739372173374,0.063,192.41,192.39,28.58375418]
[1739372173585,0.063,192.41,192.38,28.70924418]
[1739372174086,0.063,192.41,192.39,28.58375418]
[1739372174702,0.063,192.41,192.38,33.90704418]
[1739372174998,0.063,192.41,192.37,5.1982]
[1739372176002,0.063,192.41,192.38,29.80053378]
[1739372176160,0.063,192.41,192.4,28.58375418]
[1739372176366,0.063,192.41,192.4,28.70924418]
[1739372177167,0.063,192.41,192.39,28.58375418]
[1739372177467,0.063,192.41,192.36,5.1985]
[1739372177670,28.64675418,192.41,192.36,5.1985]
[1739372177868,28.58375418,192.4,192.35,5.1988]
[1739372178495,0.063,192.41,192.35,33.78255418]
[1739372178699,0.063,192.41,192.36,28.58375418]
[1739372178905,0.063,192.41,192.35,33.78255418]
[1739372179272,0.063,192.41,192.37,28.58375418]
[1739372179867,0.063,192.41,192.4,28.58375418]
[1739372180407,28.96054926,192.48,192.38,1.21670389]
[1739372180703,48.58375418,192.47,192.4,28.58375418]
[1739372180913,28.58375418,192.47,192.4,29.67483817]
[1739372181408,28.58375418,192.47,192.41,5.1972]
[1739372181793,28.58375418,192.49,192.43,0.12549]
[1739372182110,29.10325418,192.5,192.44,28.58375418]
[1739372182285,29.10325418,192.5,192.43,28.70924418]
[1739372182486,28.58375418,192.49,192.43,28.70924418]
[1739372182712,28.58375418,192.49,192.42,1.09105345]
[1739372182713,28.58375418,192.46,192.41,5.1972]
[1739372182894,28.58375418,192.47,192.41,5.1972]
[1739372183216,28.64675418,192.47,192.41,5.1972]
[1739372184535,0.063,192.47,192.41,33.78095418]
[1739372184697,0.063,192.47,192.42,29.8002395]
[1739372184897,0.063,192.47,192.43,28.58375418]
[1739372185218,0.063,192.47,192.44,29.67466015]
[1739372185582,0.063,192.47,192.46,28.58375418]
[1739372185792,0.063,192.47,192.46,29.80002128]
[1739372186000,0.063,192.47,192.46,34.99582128]
[1739372186604,0.063,192.47,192.46,37.37229128]
[1739372187385,0.0001,192.47,192.46,37.37229128]
[1739372188639,0.0001,192.47,192.46,36.37229128]
[1739372188844,0.0001,192.47,192.46,37.37229128]
[1739372189198,0.0001,192.47,192.46,186.38413981]
[1739372189506,0.0001,192.47,192.46,185.29336271]
[1739372190330,0.0001,192.47,192.46,191.88596271]
[1739372190913,0.063,192.52,192.5,1.0]
[1739372191115,0.063,192.52,192.51,50.17594537]
[1739372191698,0.063,192.52,192.51,70.7822939]
[1739372192624,0.5191,192.64,192.59,28.58375418]
[1739372192823,0.519,192.65,192.6,29.79923933]
[1739372193549,0.063,192.66,192.6,29.79923933]
[1739372194036,0.063,192.66,192.6,29.92472933]
[1739372194201,0.063,192.66,192.6,35.11682933]
[1739372194810,0.063,192.66,192.6,35.24231933]
[1739372196206,28.58375418,192.65,192.6,1.08999515]
[1739372196408,28.58375418,192.64,192.58,5.1924]
[1739372196644,28.58375418,192.63,192.57,28.58375418]
[1739372196807,28.58375418,192.64,192.58,0.12549]
[1739372197012,28.58375418,192.65,192.58,28.70924418]
[1739372197416,28.64675418,192.66,192.59,28.58375418]
[1739372197733,28.58375418,192.64,192.58,0.12549]
[1739372197942,6.0317,192.64,192.54,33.77725418]
[1739372198236,28.58375418,192.6,192.55,0.12549]
[1739372198439,0.5822,192.61,192.55,29.79950852]
[1739372198750,0.063,192.61,192.57,0.12549]
[1739372198907,0.063,192.61,192.59,0.12549]
[1739372199111,0.063,192.61,192.6,28.70924418]
[1739372200317,0.063,192.61,192.6,33.90134418]
[1739372200522,0.063,192.61,192.6,34.02683418]
[1739372201926,0.063,192.61,192.6,34.27781418]
[1739372203020,0.0001,192.61,192.6,78.27341689]
[1739372203225,0.0001,192.61,192.6,80.93981209]
[1739372205010,0.0001,192.61,192.6,52.35605791]
[1739372205234,0.0001,192.61,192.6,80.93981209]
[1739372205428,0.0001,192.61,192.6,50.35605791]
[1739372205624,0.0001,192.61,192.6,51.35605791]
[1739372206009,0.0001,192.61,192.6,52.35605791]
[1739372206213,0.0001,192.61,192.6,50.35605791]
[1739372206415,0.0001,192.61,192.6,78.93981209]
[1739372206615,0.0001,192.61,192.6,79.93981209]
[1739372207066,0.063,192.66,192.64,20.50196]
[1739372207348,0.063,192.66,192.65,63.58701693]
[1739372208555,0.063,192.66,192.65,68.77771693]
[1739372208752,0.0001,192.66,192.65,102.02771693]
[1739372208949,0.063,192.67,192.66,2.50196]
[1739372208950,0.0001,192.67,192.66,2.50196]
[1739372209115,0.0001,192.67,192.66,30.08571418]
[1739372209437,0.0001,192.67,192.66,29.08571418]
[1739372209729,0.0001,192.67,192.66,0.12549]
[1739372209939,0.0001,192.67,192.66,28.70924418]
[1739372210143,0.0001,192.67,192.65,5.1907]
[1739372210651,0.0001,192.67,192.64,0.12549]
[1739372212949,0.0001,192.67,192.63,5.1911]
[1739372213156,0.0001,192.67,192.63,28.58375418]
[1739372213457,0.0001,192.67,192.62,20.12549]
[1739372213639,0.0001,192.67,192.62,21.21533272]
[1739372214160,28.58375418,192.64,192.59,5.1922]
[1739372214456,0.0001,192.67,192.59,5.1922]
[1739372214457,28.58375418,192.65,192.59,5.1922]
[1739372214655,28.58375418,192.66,192.6,0.12549]
[1739372214952,28.58385418,192.67,192.6,0.12549]
[1739372215151,0.0001,192.67,192.62,0.12549]
[1739372215334,28.58385418,192.67,192.62,0.12549]
[1739372215535,28.58375418,192.65,192.6,1.08987096]
[1739372215730,29.10285418,192.67,192.6,29.6737087]
[1739372215931,0.0001,192.67,192.62,0.12549]
[1739372216334,28.58385418,192.67,192.62,0.12549]
[1739372217537,28.58375418,192.64,192.57,29.67367975]
[1739372217743,17.82121256,192.64,192.57,18.91113813]
[1739372218063,0.5191,192.67,192.57,18.91113813]
[1739372218064,17.82121256,192.66,192.59,37.94670256]
[1739372218229,18.34031256,192.67,192.61,0.12549]
[1739372218941,17.82121256,192.63,192.56,17.82121256]
[1739372219144,17.82121256,192.63,192.56,18.91140258]
[1739372219461,1.5189,192.66,192.57,0.12549]
[1739372219462,17.82121256,192.64,192.57,0.12549]
[1739372219940,17.82121256,192.61,192.55,5.1934]
[1739372220149,14.93074853,192.66,192.53,26.05103726]
[1739372220150,17.82121256,192.59,192.53,26.05103726]
[1739372220838,17.82121256,192.56,192.53,20.85723726]
[1739372221425,0.5192,192.59,192.53,20.85723726]
[1739372221426,0.5192,192.59,192.53,38.67844982]
[1739372221631,1.6507,192.61,192.53,38.67844982]
[1739372221632,1.6507,192.61,192.55,28.52405009]
[1739372221952,29.04315009,192.64,192.56,28.52405009]
[1739372222138,29.04315009,192.64,192.55,1.09026077]
[1739372222139,28.52405009,192.6,192.53,18.1788]
[1739372222446,0.5191,192.64,192.56,20.0]
[1739372222638,1.6242,192.66,192.58,0.12549]
[1739372222955,0.0001,192.67,192.6,0.12549]
[1739372223151,0.0001,192.67,192.6,1.34090709]
[1739372223340,0.0001,192.67,192.62,28.52405009]
[1739372223837,28.52415009,192.67,192.61,0.12549]
[1739372224040,28.52415009,192.67,192.6,1.08994586]
[1739372224241,0.0001,192.67,192.61,28.64954009]
[1739372224437,0.0001,192.67,192.62,29.61393579]
[1739372224642,0.0001,192.67,192.62,28.52405009]
[1739372225350,0.0001,192.67,192.63,28.52405009]
[1739372226054,0.0001,192.67,192.65,28.52405009]
[1739372226244,0.0001,192.67,192.66,29.61367972]
[1739372226432,0.0001,192.67,192.66,29.86465972]
[1739372226630,0.03,192.79,192.7,0.25098]
[1739372226828,0.03,192.79,192.74,60.02503009]
[1739372227033,0.03,192.79,192.78,28.52405009]
[1739372227256,0.03,192.79,192.78,28.64954009]
[1739372227456,0.03,192.79,192.78,28.52405009]
[1739372227954,0.03,192.79,192.78,28.77503009]
[1739372228154,0.03,192.79,192.78,29.86392983]
[1739372228457,0.03,192.79,192.78,29.98941983]
[1739372228640,0.03,192.79,192.78,35.17661983]
[1739372228837,0.03,192.79,192.78,0.12549]
[1739372229038,0.03,192.79,192.72,28.52405009]
[1739372229260,0.03,192.79,192.73,28.77503009]
[1739372229569,0.03,192.79,192.75,0.12549]
[1739372229758,28.55405009,192.79,192.75,0.12549]
[1739372229965,0.03,192.79,192.75,0.12549]
[1739372230136,28.55405009,192.79,192.74,20.0]
[1739372230338,28.52405009,192.77,192.7,28.52405009]
[1739372230537,28.52405009,192.76,192.69,49.76660865]
[1739372230770,28.52405009,192.78,192.72,0.12549]
[1739372230936,28.55405009,192.79,192.72,0.12549]
[1739372231137,28.52405009,192.77,192.72,0.12549]
[1739372231467,0.03,192.79,192.74,0.12549]
[1739372231771,0.03,192.79,192.78,28.77503009]
[1739372231943,0.03,192.79,192.78,29.86389915]
[1739372232145,0.03,192.79,192.78,35.17658915]
[1739372232546,0.03,192.79,192.78,35.30207915]
[1739372233069,10.03,192.82,192.81,20.50196]
[1739372233271,10.03,192.82,192.81,49.86360617]
[1739372233787,10.03,192.82,192.81,63.5264347]
[1739372233991,10.03,192.82,192.81,50.11458617]
[1739372234163,10.03,192.82,192.81,49.73811617]
[1739372234360,10.03,192.82,192.81,54.92451617]
[1739372234563,10.03,192.82,192.81,68.7128347]
[1739372234893,10.03,192.82,192.81,55.30098617]
[1739372235261,10.03,192.82,192.81,68.7128347]
[1739372236203,10.03,192.82,192.81,20.12549]
[1739372236496,10.03,192.82,192.81,20.0]
[1739372236671,10.03,192.82,192.81,48.77503009]
[1739372236882,10.03,192.82,192.81,48.90052009]
[1739372237181,10.03,192.82,192.81,49.02601009]
[1739372237385,10.03,192.82,192.81,64.43785862]
[1739372237992,10.03,192.82,192.81,63.43785862]
[1739372238193,10.03,192.82,192.81,64.43785862]
[1739372238375,10.03,192.82,192.81,68.62425862]
[1739372238575,10.03,192.82,192.81,67.62425862]
[1739372238768,10.03,192.82,192.81,203.22425862]
[1739372238969,10.03,192.82,192.81,204.22425862]
[1739372239499,10.03,192.82,192.81,203.22425862]
[1739372240490,10.03,192.82,192.81,34.08692009]
[1739372240889,10.03,192.82,192.81,33.96143009]
[1739372241199,38.55405009,192.82,192.78,20.83018928]
[1739372241495,39.07265009,192.82,192.78,20.83018928]
[1739372241999,10.5486,192.82,192.78,20.83018928]
[1739372242165,10.03,192.82,192.79,28.64954009]
[1739372242365,10.03,192.82,192.79,0.12549]
[1739372242698,10.03,192.82,192.81,29.02601009]
[1739372243007,10.03,192.82,192.81,43.52645102]
[1739372243766,10.03,192.82,192.81,44.52645102]
[1739372243966,9.53,192.82,192.81,44.52645102]
[1739372244493,9.53,192.82,192.81,49.71285102]
[1739372245400,9.56,192.82,192.81,49.71285102]
[1739372246870,1.90927311,192.82,192.81,51.72827354]
[1739372247179,15.03,192.86,192.85,0.37647]
[1739372247376,15.03,192.86,192.85,29.98897779]
[1739372247989,15.03,192.86,192.85,29.73799779]
[1739372248294,15.03,192.86,192.85,28.52405009]
[1739372248471,15.03,192.86,192.85,28.77503009]
[1739372248873,15.03,192.86,192.85,0.12549]
[1739372249282,15.03,192.86,192.85,5.31079]
[1739372249895,15.03,192.86,192.85,20.0]
[1739372250097,15.03,192.86,192.81,33.71045009]
[1739372250278,15.03,192.86,192.81,5.1864]
[1739372250604,15.03,192.86,192.79,6.33861966]
[1739372250898,15.03,192.86,192.82,0.12549]
[1739372251264,15.03,192.86,192.84,0.12549]
[1739372251469,15.03,192.86,192.84,1.33969664]
[1739372251811,15.03,192.86,192.85,28.52405009]
[1739372252134,15.03,192.86,192.85,28.77503009]
[1739372252264,15.03,192.86,192.85,28.90052009]
[1739372253302,15.03,192.86,192.85,34.08582009]
[1739372253479,15.03,192.86,192.85,35.17429951]
[1739372254589,15.03,192.86,192.85,80.96163804]
[1739372255871,15.03,192.86,192.85,79.96163804]
[1739372256391,15.03,192.86,192.85,33.96033009]
[1739372257186,15.03,192.86,192.85,34.08582009]
[1739372257597,15.03,192.86,192.85,33.83484009]
[1739372258487,15.03,192.86,192.85,33.96033009]
[1739372258683,15.03,192.86,192.85,34.08582009]
[1739372259195,15.03,192.86,192.85,33.83484009]
[1739372259985,15.03,192.86,192.85,5.31079]
[1739372260183,15.03,192.86,192.83,5.1856]
[1739372260388,15.03,192.86,192.82,0.063]
[1739372260984,28.52405009,192.85,192.82,0.063]
[1739372262112,43.55405009,192.86,192.82,0.063]
[1739372262302,28.52405009,192.85,192.82,0.063]
[1739372262594,28.52405009,192.84,192.82,0.063]
[1739372263676,28.52405009,192.83,192.82,0.063]
[1739372264979,29.04255009,192.83,192.82,0.063]
[1739372265892,15.03,192.86,192.82,28.58705009]
[1739372266094,15.03,192.86,192.85,28.64954009]
[1739372266895,15.03,192.86,192.85,33.83484009]
[1739372267984,15.03,192.86,192.85,48.58628128]
[1739372268192,0.03,192.87,192.86,0.25098]
[1739372268385,0.0001,192.87,192.86,94.59785862]
[1739372268893,0.0001,192.87,192.86,99.78295862]
[1739372269581,0.0001,192.87,192.86,99.87125447]
[1739372271601,0.0001,192.87,192.86,99.74576447]
[1739372271809,0.0001,192.87,192.86,68.58576447]
[1739372272517,0.0001,192.87,192.85,0.063]
[1739372272898,0.0001,192.87,192.85,20.063]
[1739372273286,0.0001,192.87,192.86,1.50196]
[1739372273603,7.7595,193.09,192.95,20.0]
[1739372273816,7.7595,193.09,193.0,0.25098]
[1739372274005,7.7595,193.09,193.0,1.33865646]
[1739372274315,7.7595,193.09,193.0,0.25098]
[1739372274640,7.7595,193.09,193.05,20.0]
[1739372274919,7.7595,193.09,193.04,28.52405009]
[1739372275086,11.50519175,193.11,193.08,20.0]
[1739372275294,28.52405009,193.13,193.06,28.52405009]
[1739372275606,7.7323,193.14,193.12,28.52405009]
[1739372275806,7.7323,193.14,193.13,28.52405009]
[1739372278716,1.5007,193.19,193.13,28.52405009]
[1739372278911,1.5007,193.19,193.18,28.52405009]
[1739372279523,6.4385,193.2,193.18,28.52405009]
[1739372279731,6.4385,193.2,193.19,28.52405009]
[1739372279927,6.4385,193.2,193.19,57.04810018]
[1739372280430,1.5888,193.24,193.19,57.04810018]
[1739372280633,1.5888,193.24,193.23,28.52405009]
[1739372281400,6.0153,193.26,193.23,28.52405009]
[1739372281601,6.0153,193.26,193.25,28.52405009]
[1739372281805,1.6155,193.29,193.25,28.52405009]
[1739372282175,6.603,193.33,193.23,20.0]
[1739372282430,6.603,193.33,193.31,28.52405009]
[1739372282631,6.603,193.33,193.32,28.52405009]
[1739372284333,0.03,193.34,193.32,28.52405009]
[1739372284505,0.03,193.34,193.33,28.52405009]
[1739372285421,0.03,193.34,193.32,28.52405009]
[1739372285626,0.03,193.34,193.29,28.52405009]
[1739372285835,0.03,193.34,193.3,28.52405009]
[1739372286031,2.1575,193.35,193.29,28.52405009]
[1739372286329,1.1575,193.35,193.3,28.52405009]
[1739372287031,28.52405009,193.31,193.25,28.52405009]
[1739372287236,1.0,193.29,193.24,28.52405009]
[1739372287528,1.1575,193.35,193.24,20.0]
[1739372287731,1.1575,193.35,193.24,21.08639051]
[1739372287935,1.1575,193.35,193.24,20.0]
[1739372288122,1.1575,193.35,193.24,1.08635793]
[1739372288324,1.1575,193.35,193.24,21.08635793]
[1739372288732,0.12549,193.4,193.34,28.52405009]
[1739372288733,1.0,193.4,193.34,28.52405009]
[1739372288935,2.03456429,193.42,193.37,28.52405009]
[1739372289138,29.52405009,193.42,193.35,28.52405009]
[1739372289334,28.52405009,193.41,193.35,28.52405009]
[1739372289540,1.0,193.41,193.33,33.69645009]
[1739372289834,1.0,193.36,193.3,28.52405009]
[1739372290041,20.0,193.35,193.32,28.52405009]
[1739372290826,29.52405009,193.39,193.32,28.52405009]
[1739372291031,1.0,193.41,193.35,28.52405009]
[1739372291229,20.0,193.4,193.35,28.52405009]
[1739372291435,20.0,193.38,193.34,28.52405009]
[1739372291843,20.0,193.38,193.35,28.52405009]
[1739372292027,20.0,193.39,193.36,28.52405009]
[1739372293020,20.0,193.39,193.35,28.52405009]
[1739372293219,20.0,193.39,193.33,28.52405009]
[1739372293220,1.0,193.38,193.33,28.52405009]
[1739372293640,48.52405009,193.39,193.33,28.52405009]
[1739372293641,49.52405009,193.39,193.33,28.52405009]
[1739372293853,0.12549,193.38,193.33,28.52405009]
[1739372294034,0.12549,193.38,193.32,5.1727]
[1739372294035,20.0,193.36,193.32,33.69675009]
[1739372294219,28.52405009,193.39,193.33,28.52405009]
[1739372294419,0.517,193.4,193.34,28.52405009]
[1739372294860,1.0,193.39,193.34,28.52405009]
[1739372295058,1.0,193.38,193.32,33.69675009]
[1739372295229,8.11759,193.43,193.37,28.52405009]
[1739372295230,36.51615009,193.43,193.37,28.52405009]
[1739372295430,7.9921,193.43,193.37,28.52405009]
[1739372295652,7.9921,193.43,193.38,28.52405009]
[1739372295854,36.51615009,193.43,193.36,28.52405009]
[1739372296056,28.52405009,193.41,193.34,28.52405009]
[1739372296544,28.52405009,193.41,193.35,5.1719]
[1739372296723,7.9921,193.43,193.38,28.52405009]
[1739372297232,6.4272,193.43,193.39,28.52405009]
[1739372297635,1.0,193.46,193.37,28.52405009]
[1739372297832,21.0,193.44,193.38,28.52405009]
[1739372298033,0.12549,193.46,193.4,28.52405009]
[1739372298034,1.0,193.46,193.4,28.52405009]
[1739372298235,28.52405009,193.45,193.39,28.52405009]
[1739372298450,1.0,193.44,193.39,28.52405009]
[1739372298647,1.0,193.44,193.38,28.52405009]
[1739372298844,1.12549,193.41,193.34,33.69595009]
[1739372299050,28.52405009,193.38,193.31,28.52405009]
[1739372299252,29.52405009,193.38,193.31,28.52405009]
[1739372299757,20.0,193.39,193.35,28.52405009]
[1739372299927,20.0,193.39,193.34,28.52405009]
[1739372300448,1.0,193.53,193.38,28.52405009]
[1739372300634,1.6019,193.51,193.38,1.08554984]
[1739372300952,1.0,193.54,193.39,0.25098]
[1739372301150,1.0,193.54,193.4,1.08541625]
[1739372301151,2.0,193.54,193.4,1.08541625]
[1739372301744,1.0,193.54,193.49,28.52405009]
[1739372301922,2.0,193.54,193.49,28.52405009]
[1739372302318,1.0,193.54,193.49,28.52405009]
[1739372302548,2.0,193.54,193.49,28.52405009]
[1739372302922,20.0,193.52,193.47,28.52405009]
[1739372303127,31.04065009,193.54,193.47,28.52405009]
[1739372303332,31.04065009,193.54,193.41,5.1703]
[1739372303333,20.0,193.52,193.48,28.52405009]
[1739372306349,21.0,193.53,193.49,28.52405009]
[1739372306530,0.03,193.52,193.49,28.52405009]
[1739372307165,0.03,193.52,193.51,28.52405009]
[1739372308453,0.03,193.52,193.51,33.69165009]
[1739372309435,0.03,193.52,193.51,28.52405009]
[1739372309665,0.03,193.52,193.51,33.69165009]
[1739372311745,0.28385139,193.56,193.51,33.81714009]
[1739372311953,0.28385139,193.56,193.55,28.52405009]
[1739372312539,5.139e-05,193.56,193.55,33.94163009]
[1739372312845,6.5722,193.67,193.56,0.12549]
[1739372313173,37.11425009,193.71,193.64,28.52405009]
[1739372313375,1.0,193.7,193.64,28.52405009]
[1739372313555,29.52405009,193.7,193.63,28.52405009]
[1739372313738,37.11425009,193.71,193.64,28.52405009]
[1739372313939,7.5902,193.71,193.65,28.52405009]
[1739372314662,8.1064,193.71,193.65,28.52405009]
[1739372315749,36.63045009,193.71,193.65,28.52405009]
[1739372315950,8.1064,193.71,193.65,28.52405009]
[1739372316353,8.1064,193.71,193.66,28.52405009]
[1739372316553,8.1064,193.71,193.67,28.52405009]
[1739372316757,20.0,193.71,193.67,28.52405009]
[1739372317563,0.5161,193.73,193.67,28.52405009]
[1739372317945,29.04015009,193.73,193.67,28.52405009]
[1739372318153,0.5161,193.73,193.67,28.52405009]
[1739372318451,20.0,193.72,193.67,28.52405009]
[1739372318777,20.0,193.72,193.63,5.1643]
[1739372318778,28.52405009,193.69,193.63,28.52405009]
[1739372318978,28.52405009,193.7,193.63,28.52405009]
[1739372319347,28.52405009,193.69,193.63,28.52405009]
[1739372319549,29.52405009,193.65,193.58,28.52405009]
[1739372319879,29.04055009,193.61,193.55,28.58705009]
[1739372320376,29.04055009,193.61,193.55,0.063]
[1739372320572,28.52405009,193.58,193.55,0.063]
[1739372320879,28.52405009,193.59,193.55,0.063]
[1739372321244,28.52405009,193.57,193.55,0.063]
[1739372321442,28.52405009,193.56,193.55,0.063]
[1739372321674,28.52405009,193.57,193.55,0.063]
[1739372321846,28.52405009,193.56,193.55,0.063]
[1739372322364,29.04065009,193.56,193.55,0.063]
[1739372322769,51.00306862,193.56,193.55,0.063]
[1739372323076,35.21475009,193.56,193.55,0.063]
[1739372323485,37.21475009,193.56,193.55,0.063]
[1739372323779,29.04065009,193.56,193.55,0.063]
[1739372324353,48.52405009,193.57,193.55,0.063]
[1739372324569,0.5165,193.58,193.55,0.063]
[1739372324770,28.52405009,193.56,193.55,0.063]
[1739372324974,45.66388862,193.56,193.55,0.063]
[1739372325361,30.12655009,193.56,193.55,0.063]
[1739372326288,32.64315009,193.56,193.55,0.063]
[1739372326492,31.64315009,193.56,193.55,0.063]
[1739372326980,30.64315009,193.56,193.55,0.063]
[1739372327222,29.04065009,193.56,193.55,0.063]
[1739372327483,28.52405009,193.56,193.55,0.063]
[1739372328765,48.52405009,193.57,193.55,0.063]
[1739372329581,28.52405009,193.56,193.55,0.063]
[1739372329881,28.52405009,193.62,193.55,28.58705009]
[1739372330085,1.0,193.63,193.58,28.52405009]
[1739372330466,29.52405009,193.63,193.57,28.52405009]
[1739372330664,1.0,193.63,193.59,28.52405009]
[1739372331084,1.0,193.63,193.6,28.52405009]
[1739372331287,21.0,193.63,193.6,28.52405009]
[1739372331491,20.0,193.61,193.58,28.52405009]
[1739372331975,20.0,193.61,193.56,5.1663]
[1739372331976,20.0,193.61,193.59,28.52405009]
[1739372332490,20.0,193.63,193.59,28.52405009]
[1739372332871,1.0,193.66,193.62,28.52405009]
[1739372333072,30.52405009,193.66,193.6,28.52405009]
[1739372333478,30.52405009,193.66,193.59,28.52405009]
[1739372333684,20.0,193.64,193.59,28.52405009]
[1739372333882,20.0,193.64,193.6,28.52405009]
[1739372334188,1.0,193.65,193.59,28.52405009]
[1739372334589,1.0,193.64,193.59,28.52405009]
[1739372334786,50.04035009,193.66,193.59,28.52405009]
[1739372334991,20.0,193.64,193.6,28.52405009]
[1739372335495,20.0,193.64,193.55,0.063]
[1739372335496,20.0,193.63,193.57,28.52405009]
[1739372336081,20.0,193.63,193.6,28.52405009]
[1739372336797,20.0,193.65,193.6,28.52405009]
[1739372337500,20.0,193.64,193.6,28.52405009]
[1739372338203,1.2908,193.68,193.59,5.1655]
[1739372338204,0.5163,193.68,193.62,28.52405009]
[1739372338877,20.0,193.66,193.61,28.52405009]
[1739372339203,20.0,193.66,193.62,28.52405009]
[1739372339388,20.0,193.66,193.61,28.52405009]
[1739372339708,48.52405009,193.67,193.6,28.52405009]
[1739372340274,20.0,193.67,193.61,33.68905009]
[1739372340603,48.52405009,193.67,193.61,5.165]
[1739372340791,49.04035009,193.67,193.6,33.68925009]
[1739372340986,28.52405009,193.69,193.6,5.1652]
[1739372341284,8.0687,193.7,193.65,28.52405009]
[1739372341285,8.5849,193.7,193.65,28.52405009]